bitfinex/quotes_ETHUSD_20251119
["timestamp","ask_amount","ask_price","bid_price","bid_amount"]
[1763589207029,0.0322,2995.9,2995.1,0.1813]
[1763589207325,0.0322,2995.9,2994.5,0.001]
[1763589207481,0.0322,2995.9,2994.6,0.4741]
[1763589207679,0.4794,2995.9,2994.6,0.4741]
[1763589208827,0.0322,2995.9,2995.6,0.001]
[1763589209301,0.4794,2995.9,2995.6,0.001]
[1763589210514,0.0322,2995.9,2995.6,0.001]
[1763589210835,0.002,2996.2,2995.6,0.001]
[1763589212698,0.0034,2995.7,2995.6,0.001]
[1763589213231,0.3388,2995.7,2995.6,0.001]
[1763589213727,0.0034,2995.7,2995.6,0.001]
[1763589214888,0.3388,2995.7,2995.6,0.001]
[1763589215409,0.0034,2995.7,2995.6,0.001]
[1763589216119,0.002,2996.2,2995.6,0.001]
[1763589216120,0.405504,2996.1,2995.6,0.001]
[1763589216283,0.3388,2996.1,2995.6,0.001]
[1763589216492,0.0034,2995.7,2995.6,0.001]
[1763589216696,0.744304,2995.7,2995.6,0.001]
[1763589217819,4.275304,2995.7,2995.6,0.001]
[1763589218024,2.07882704,2995.7,2995.6,0.001]
[1763589218200,1.65129664,2995.7,2995.6,0.001]
[1763589218603,0.91039264,2995.7,2995.6,0.001]
[1763589218817,1.24579264,2995.7,2995.6,0.001]
[1763589220038,1.65129664,2995.7,2995.6,0.001]
[1763589220242,1.31249664,2995.6,2995.3,0.001]
[1763589220541,0.0034,2995.4,2995.3,0.001]
[1763589220947,0.3389,2995.4,2995.3,0.001]
[1763589221918,0.408904,2995.4,2995.3,0.001]
[1763589222246,0.0034,2995.4,2995.3,0.001]
[1763589222545,0.3389,2995.4,2995.3,0.001]
[1763589222945,0.0034,2995.4,2995.3,0.001]
[1763589223254,0.405504,2995.9,2995.3,0.001]
[1763589223437,0.744304,2995.9,2995.3,0.001]
[1763589223744,0.0034,2995.4,2995.3,0.001]
[1763589224151,0.3388,2995.4,2995.3,0.001]
[1763589225142,0.405504,2996.0,2995.3,0.001]
[1763589225634,0.744304,2996.0,2995.3,0.001]
[1763589225834,0.3388,2996.0,2995.3,0.001]
[1763589226234,0.002,2996.2,2995.3,0.4869]
[1763589226657,0.405504,2996.1,2995.3,0.4869]
[1763589227358,0.002,2995.9,2995.3,0.001]
[1763589227522,0.407504,2995.9,2995.3,0.001]
[1763589227720,0.3388,2995.8,2995.3,0.001]
[1763589228041,0.002,2995.9,2995.3,0.001]
[1763589229230,0.0034,2995.4,2995.3,0.001]
[1763589229449,0.407504,2995.9,2995.3,0.001]
[1763589229751,0.746304,2995.9,2995.3,0.001]
[1763589229923,0.002,2995.9,2995.3,0.001]
[1763589230759,0.407504,2995.9,2995.3,0.001]
[1763589231252,0.002,2995.9,2995.3,0.4869]
[1763589232356,0.002,2995.9,2995.3,0.001]
[1763589232955,0.0034,2995.4,2995.3,0.001]
[1763589233322,0.3388,2995.4,2995.3,0.001]
[1763589233524,0.744304,2995.4,2995.3,0.001]
[1763589234993,0.3388,2995.4,2995.0,0.001]
[1763589235190,3.939904,2995.1,2995.0,0.001]
[1763589235475,3.939904,2995.1,2994.7,0.001]
[1763589235476,5.79138084,2995.1,2994.7,0.001]
[1763589235775,0.449804,2994.8,2994.7,0.001]
[1763589236144,0.917804,2994.8,2994.7,0.001]
[1763589237466,0.449804,2994.8,2994.7,0.001]
[1763589239178,0.0419,2995.1,2994.7,0.001]
[1763589239341,0.0769,2994.8,2994.7,0.001]
[1763589239747,0.5453,2994.8,2994.7,0.001]
[1763589240846,0.0769,2994.8,2994.7,0.001]
[1763589241047,0.405504,2995.0,2994.7,0.001]
[1763589241246,0.0769,2994.8,2994.7,0.001]
[1763589242568,0.950804,2994.8,2994.7,0.001]
[1763589243800,0.482404,2994.8,2994.7,0.001]
[1763589244472,0.950804,2994.8,2994.7,0.001]
[1763589244885,0.482404,2994.8,2994.7,0.001]
[1763589245550,0.5103,2995.1,2994.7,0.001]
[1763589245551,0.405504,2995.0,2994.7,0.001]
[1763589246059,0.0808,2994.8,2994.7,0.001]
[1763589246461,0.405504,2995.0,2994.7,0.001]
[1763589246877,0.4723,2995.4,2994.7,0.001]
[1763589247188,0.0419,2995.5,2994.7,0.4869]
[1763589247392,0.405504,2995.4,2994.7,0.4869]
[1763589248588,0.0769,2994.8,2994.7,0.001]
[1763589248885,1.3145686,2995.4,2994.7,0.001]
[1763589249386,0.8422686,2995.4,2994.7,0.001]
[1763589249586,0.405504,2995.2,2994.7,0.001]
[1763589249997,0.405504,2995.0,2994.7,0.001]
[1763589250198,0.482404,2994.8,2994.7,0.001]
[1763589250490,0.4367646,2995.4,2994.7,0.001]
[1763589250491,0.405504,2995.4,2994.7,0.001]
[1763589250691,0.405504,2995.4,2994.7,0.4977]
[1763589251191,0.877804,2995.4,2994.7,0.001]
[1763589252352,0.405504,2995.4,2994.7,0.001]
[1763589252560,0.405504,2995.4,2994.7,0.4633]
[1763589252959,0.0769,2994.8,2994.7,0.001]
[1763589253290,0.94805422,2994.8,2994.7,0.001]
[1763589253474,1.64250931,2994.8,2994.7,0.001]
[1763589254466,1.17410931,2994.8,2994.7,0.001]
[1763589254781,1.41645422,2994.8,2994.7,0.001]
[1763589255290,0.94805422,2994.8,2994.7,0.001]
[1763589255490,0.0769,2994.8,2994.7,0.001]
[1763589255872,0.405504,2995.1,2994.7,0.4977]
[1763589256073,0.0419,2995.5,2994.7,0.4977]
[1763589256274,0.405504,2995.4,2994.7,0.001]
[1763589257827,1.31249664,2995.2,2994.7,0.001]
[1763589258111,0.17180006,2995.2,2994.7,0.001]
[1763589258600,0.405504,2995.0,2994.7,0.001]
[1763589258798,0.64410006,2995.2,2994.7,0.001]
[1763589258799,0.405504,2995.1,2994.7,0.001]
[1763589259598,0.877804,2995.1,2994.7,0.001]
[1763589259768,0.86998755,2995.1,2994.7,0.001]
[1763589259969,0.405504,2995.1,2994.7,0.001]
[1763589262590,0.4723,2994.8,2994.7,0.001]
[1763589262795,0.405504,2995.2,2994.7,0.001]
[1763589262996,0.90699264,2995.3,2994.7,0.001]
[1763589262997,0.482404,2994.8,2994.7,0.001]
[1763589264678,0.405504,2994.8,2993.2,0.0345]
[1763589266719,0.405504,2994.8,2993.3,0.4618]
[1763589268198,0.880704,2994.8,2993.3,0.4618]
[1763589269429,0.405504,2994.8,2994.7,0.5442]
[1763589269750,0.002,2995.1,2994.7,0.5442]
[1763589270027,0.002,2995.1,2995.0,0.4712]
[1763589270193,0.002,2995.1,2995.0,0.933]
[1763589271394,0.002,2995.1,2994.7,0.073]
[1763589272199,0.002,2995.1,2994.7,0.5348]
[1763589272701,0.002,2995.1,2994.7,0.073]
[1763589273310,0.002,2995.1,2995.0,0.4712]
[1763589274142,0.4795,2995.1,2993.3,1.78769664]
[1763589274318,0.9547,2995.1,2994.3,0.1843]
[1763589274518,0.002,2995.1,2994.3,0.1843]
[1763589274852,0.4752,2995.0,2994.3,0.1843]
[1763589276553,0.002,2995.1,2994.3,0.1843]
[1763589276926,0.4772,2995.1,2994.3,0.1843]
[1763589277356,0.002,2995.1,2995.0,0.4712]
[1763589277554,0.002,2995.1,2994.4,0.4618]
[1763589277759,0.002,2995.1,2994.3,0.1843]
[1763589277960,0.4957,2995.0,2994.3,0.1843]
[1763589278160,0.405504,2994.9,2994.1,0.1971]
[1763589278562,0.4957,2994.8,2993.6,0.4852]
[1763589280137,0.002,2995.1,2993.7,0.03340348]
[1763589280345,0.4957,2995.0,2993.8,0.4852]
[1763589281748,0.405504,2994.9,2993.8,0.4852]
[1763589281947,0.4957,2994.8,2993.8,0.4852]
[1763589282750,0.405504,2994.7,2993.8,0.4852]
[1763589283355,0.901204,2994.7,2993.8,0.4852]
[1763589283756,0.4957,2994.6,2993.3,0.4852]
[1763589283960,0.405504,2994.9,2993.3,0.4852]
[1763589284132,0.901204,2994.9,2993.3,0.4852]
[1763589284531,0.405504,2994.7,2993.3,0.4852]
[1763589285229,0.901204,2994.7,2993.3,0.4852]
[1763589285834,0.4957,2994.6,2993.3,0.4852]
[1763589286169,0.405504,2994.8,2993.3,0.4852]
[1763589286681,0.4957,2994.7,2993.3,0.4852]
[1763589287466,0.4957,2994.7,2993.2,0.0345]
[1763589287467,0.405504,2994.6,2993.2,0.0345]
[1763589287667,0.86998755,2994.6,2993.2,0.0345]
[1763589287963,0.405504,2994.3,2993.3,0.4852]
[1763589288330,0.405504,2994.2,2993.3,0.4852]
[1763589288546,0.4957,2994.3,2993.2,0.0345]
[1763589288547,0.46448355,2994.6,2993.4,0.4852]
[1763589288749,0.405504,2994.5,2993.4,0.4852]
[1763589290151,0.405504,2994.8,2993.4,0.4852]
[1763589290343,0.901204,2994.8,2993.4,0.4852]
[1763589291177,0.4977,2995.1,2993.4,0.4852]
[1763589291393,0.4977,2995.0,2993.4,0.4852]
[1763589291600,0.86998755,2994.9,2993.4,0.4852]
[1763589291971,0.4977,2995.0,2993.4,0.4852]
[1763589291972,0.002,2995.0,2993.4,0.4852]
[1763589292371,0.002,2995.0,2993.6,0.90699264]
[1763589292596,0.002,2995.0,2994.9,0.4991]
[1763589292985,0.002,2995.0,2994.9,0.5685]
[1763589294294,0.002,2995.0,2994.9,1.0537]
[1763589294999,0.002,2995.0,2994.9,0.5685]
[1763589295663,0.002,2995.0,2994.9,1.0537]
[1763589298883,0.002,2995.0,2994.6,0.1971]
[1763589299278,0.002,2995.0,2994.9,0.4991]
[1763589299606,0.002,2995.0,2994.6,0.6823]
[1763589300604,0.002,2995.0,2994.3,0.1971]
[1763589300605,0.4957,2994.9,2994.3,0.1971]
[1763589300803,0.002,2995.0,2994.3,0.1971]
[1763589301180,0.002,2995.0,2994.4,0.4852]
[1763589302410,0.002,2995.0,2994.9,0.4991]
[1763589303314,0.002,2995.0,2994.6,0.4852]
[1763589303512,0.002,2995.0,2994.9,0.4991]
[1763589303811,0.002,2995.0,2994.5,0.114]
[1763589304004,0.002,2995.0,2994.9,0.4991]
[1763589306788,0.002,2995.0,2994.9,0.9843]
[1763589307885,0.002,2995.0,2994.9,0.9915]
[1763589310533,0.002,2995.0,2994.9,0.4991]
[1763589310696,0.002,2995.0,2994.9,0.9915]
[1763589311012,0.459,2995.0,2994.6,0.13374638]
[1763589311216,0.002,2995.0,2994.6,0.114]
[1763589311417,0.002,2995.0,2994.6,0.6064]
[1763589311916,0.002,2995.0,2994.6,0.114]
[1763589312518,0.002,2995.0,2994.3,0.6895]
[1763589312820,0.002,2995.0,2994.4,0.114]
[1763589313602,0.457,2994.5,2994.1,0.1972]
[1763589313915,0.4613,2995.0,2993.8,0.114]
[1763589314399,0.4613,2995.0,2993.8,0.6064]
[1763589315491,0.4613,2995.0,2993.8,0.114]
[1763589316227,0.4613,2995.0,2993.8,0.6064]
[1763589316645,0.002,2995.0,2993.8,0.114]
[1763589316794,0.002,2995.0,2993.9,0.4924]
[1763589316995,0.4613,2995.0,2993.9,0.4924]
[1763589320118,0.4613,2995.0,2994.9,0.4798]
[1763589320119,0.002,2995.0,2994.9,0.4798]
[1763589320434,0.002,2995.0,2994.4,0.114]
[1763589322752,0.002,2995.0,2994.9,0.4798]
[1763589324629,0.002,2995.0,2994.4,0.4924]
[1763589326318,0.002,2995.0,2994.9,0.4613]
[1763589326724,0.002,2995.0,2994.9,0.9591]
[1763589327868,0.002,2995.0,2994.9,4.29810964]
[1763589328082,0.002,2995.3,2995.0,2.27159664]
[1763589328366,0.6707,2997.2,2995.3,0.405504]
[1763589328570,0.6707,2997.2,2995.8,0.866804]
[1763589328865,0.6707,2997.2,2995.8,0.980804]
[1763589329071,0.6707,2997.2,2995.8,1.478604]
[1763589329458,0.4817,2997.6,2995.8,5.72360318]
[1763589329660,0.4817,2997.6,2996.1,1.048604]
[1763589329965,0.4817,2997.6,2996.1,1.546404]
[1763589330330,0.4817,2997.2,2996.1,2.028104]
[1763589330759,0.1961,2996.9,2996.1,1.1248]
[1763589330958,0.6778,2996.9,2996.1,0.7571]
[1763589331365,0.4817,2996.6,2996.1,0.114]
[1763589331548,0.4817,2996.6,2995.8,0.1818]
[1763589331737,0.4817,2996.6,2996.1,0.4613]
[1763589332348,0.4817,2996.6,2995.9,0.114]
[1763589332670,0.4817,2996.6,2995.9,0.6118]
[1763589332870,0.1961,2996.9,2996.1,0.4613]
[1763589333074,0.002,2996.5,2996.1,0.4613]
[1763589333273,0.9835,2996.2,2995.4,0.6778]
[1763589333442,0.2482,2996.0,2995.5,0.114]
[1763589333961,0.7299,2996.0,2995.5,0.114]
[1763589334460,0.2482,2996.0,2995.5,0.114]
[1763589334661,0.002,2996.2,2995.6,0.4978]
[1763589334869,0.002,2996.2,2995.5,0.114]
[1763589335042,0.002,2996.2,2995.5,0.6118]
[1763589336861,0.002,2996.2,2996.1,0.6431]
[1763589337651,0.002,2996.2,2996.1,1.1409]
[1763589339746,0.002,2996.2,2996.1,1.17427672]
[1763589339975,0.002,2996.2,2996.1,6.01059588]
[1763589340352,0.002,2996.2,2996.1,6.14424663]
[1763589340971,0.9229,2996.2,2995.7,0.90699264]
[1763589341277,0.6563,2995.8,2994.6,0.1892]
[1763589341475,0.4606,2995.7,2995.1,0.1892]
[1763589341772,1.52256028,2995.7,2994.3,0.1892]
[1763589341952,0.3085,2994.8,2994.3,0.3032]
[1763589342276,1.32448207,2995.6,2994.3,0.3032]
[1763589342470,0.4606,2995.5,2994.3,0.3032]
[1763589342771,0.4606,2995.5,2994.1,0.5663]
[1763589342772,1.26938607,2995.4,2994.1,0.0693]
[1763589342969,0.63359861,2995.3,2994.2,0.114]
[1763589343188,0.86388207,2995.2,2994.2,0.114]
[1763589343355,0.4606,2995.1,2994.2,0.114]
[1763589343752,0.4606,2995.1,2994.2,0.10254]
[1763589345093,0.196,2995.8,2995.0,0.4821]
[1763589345387,0.4606,2995.7,2995.0,0.5961]
[1763589345593,0.4626,2996.2,2995.1,0.1892]
[1763589345984,0.4626,2996.2,2995.1,0.6862]
[1763589346183,0.4626,2996.2,2995.1,1.59319264]
[1763589346570,0.002,2996.2,2995.2,0.497]
[1763589346988,0.002,2996.2,2995.2,1.40399264]
[1763589347362,0.002,2996.2,2995.3,0.497]
[1763589347971,0.4606,2996.1,2995.3,0.90699264]
[1763589348193,0.4606,2996.1,2995.3,4.245524]
[1763589348396,0.4606,2996.1,2995.3,7.58408774]
[1763589348597,0.002,2996.2,2995.3,8.08108774]
[1763589348799,0.002,2996.2,2995.3,0.497]
[1763589348978,0.4626,2996.2,2995.4,0.90699264]
[1763589349173,0.4626,2996.2,2995.5,0.114]
[1763589349779,0.002,2996.2,2996.1,0.887604]
[1763589350075,0.002,2996.2,2996.1,6.81326894]
[1763589350279,0.002,2996.5,2996.4,0.505504]
[1763589350500,0.002,2996.5,2996.4,0.887604]
[1763589350710,0.002,2996.5,2996.4,3.68159664]
[1763589350899,0.196,2997.9,2996.4,3.68159664]
[1763589351103,0.196,2997.9,2996.7,0.887604]
[1763589351422,0.196,2997.9,2996.7,1.001604]
[1763589351578,0.196,2997.9,2996.7,1.498604]
[1763589352193,0.4606,2997.8,2996.7,5.62860067]
[1763589352415,0.4606,2997.8,2996.7,5.74260067]
[1763589352931,0.196,2998.2,2996.8,1.31249664]
[1763589353132,0.196,2998.2,2997.7,0.4821]
[1763589353332,0.196,2998.5,2997.8,0.114]
[1763589353822,0.4606,2998.4,2997.8,0.114]
[1763589354357,0.4606,2998.4,2997.9,0.114]
[1763589354682,0.4606,2998.4,2998.0,0.114]
[1763589355114,0.4603,2998.1,2998.0,0.114]
[1763589355701,0.4603,2998.1,2997.9,0.114]
[1763589355902,0.4606,2998.4,2997.9,0.114]
[1763589356317,0.196,2998.5,2997.9,0.114]
[1763589356923,0.4606,2998.4,2997.9,0.114]
[1763589359540,0.4606,2998.4,2998.0,0.114]
[1763589360433,0.4603,2998.1,2997.3,0.902504]
[1763589360634,0.4603,2998.1,2997.4,0.114]
[1763589360943,0.9209,2998.1,2997.4,0.114]
[1763589361240,0.9209,2998.1,2997.2,0.6757]
[1763589361443,0.9209,2998.1,2997.3,1.02099264]
[1763589362163,0.4606,2998.0,2997.3,0.114]
[1763589362514,0.196,2997.9,2997.3,0.114]
[1763589363025,0.196,2997.9,2996.7,0.405504]
[1763589363026,0.4606,2997.8,2997.0,0.90699264]
[1763589363220,0.4603,2997.4,2997.1,0.114]
[1763589363641,0.4603,2997.2,2996.8,1.08569264]
[1763589363857,0.4603,2997.2,2996.6,0.1787]
[1763589364171,0.196,2997.9,2997.1,0.4821]
[1763589364383,0.196,2997.9,2997.2,0.90699264]
[1763589364509,0.196,2997.9,2996.4,0.1787]
[1763589364510,0.4603,2997.0,2996.4,0.1787]
[1763589364865,0.4603,2997.0,2995.3,0.497]
[1763589365062,0.196,2997.9,2994.9,0.406504]
[1763589365063,0.5004,2996.1,2995.2,0.497]
[1763589365215,0.5004,2996.1,2995.3,0.114]
[1763589365914,0.5004,2996.1,2995.3,0.611]
[1763589366549,0.5004,2996.1,2995.1,0.1902]
[1763589366714,0.5004,2996.1,2995.4,0.114]
[1763589367260,0.196,2996.4,2995.5,0.5303834]
[1763589367557,0.196,2996.4,2995.5,0.497]
[1763589368016,0.196,2996.4,2995.5,0.114]
[1763589368017,0.4889,2996.3,2995.5,0.114]
[1763589369207,0.002,2996.8,2995.5,0.114]
[1763589369208,0.181,2996.7,2996.2,0.4551]
[1763589369453,0.002,2996.8,2996.3,0.114]
[1763589369644,0.002,2996.8,2996.1,0.1004]
[1763589369846,0.002,2996.8,2996.2,0.114]
[1763589370489,0.002,2996.8,2996.3,0.114]
[1763589370865,0.4909,2996.8,2996.3,0.114]
[1763589371249,0.4909,2996.8,2996.4,0.114]
[1763589373574,0.002,2996.8,2996.4,0.114]
[1763589373811,0.002,2996.8,2996.7,0.4551]
[1763589374087,0.002,2996.8,2996.7,0.9533]
[1763589374381,0.002,2996.8,2996.7,1.13932926]
[1763589375170,0.002,2996.8,2996.7,2.0463219]
[1763589375574,0.002,2996.8,2996.7,1.13932926]
[1763589376183,0.002,2996.8,2996.7,2.0463219]
[1763589376560,0.002,2996.8,2996.7,1.13932926]
[1763589376882,0.002,2996.8,2996.7,2.0463219]
[1763589377550,0.002,2996.8,2996.7,5.38332593]
[1763589378583,0.002,2996.8,2996.7,1.9536259]
[1763589378785,0.002,2996.8,2996.7,1.5481219]
[1763589378959,0.002,2996.8,2996.7,1.0930219]
[1763589379279,0.002,2996.8,2996.7,0.90699264]
[1763589379454,0.002,2996.8,2996.7,1.02099264]
[1763589379982,0.002,2996.8,2996.7,0.90699264]
[1763589380172,0.002,2996.8,2996.7,1.02099264]
[1763589380372,0.002,2996.8,2996.7,0.90699264]
[1763589380373,0.499,2996.8,2996.7,0.90699264]
[1763589380704,0.499,2996.8,2996.6,0.114]
[1763589380705,0.9879,2996.8,2996.6,0.114]
[1763589380888,0.9879,2996.8,2995.2,3.83687521]
[1763589381187,0.4889,2996.7,2995.3,0.114]
[1763589381581,0.4889,2996.7,2995.1,0.1902]
[1763589381884,0.4889,2996.7,2995.2,0.114]
[1763589382246,0.4889,2996.7,2995.2,1.02099264]
[1763589383387,0.4889,2996.7,2995.3,3.83676374]
[1763589383787,0.4889,2996.7,2995.4,0.4982]
[1763589385504,0.4889,2996.7,2995.5,0.90699264]
[1763589385700,0.4889,2996.7,2995.6,0.114]
[1763589386769,0.002,2996.8,2995.6,0.114]
[1763589386974,0.002,2996.8,2995.7,0.405504]
[1763589387483,0.002,2996.8,2995.8,3.78901565]
[1763589387798,0.002,2996.8,2995.9,0.90699264]
[1763589388602,0.002,2996.8,2995.9,1.35809264]
[1763589388997,0.002,2996.8,2996.0,3.33778371]
[1763589389299,0.002,2996.8,2996.1,0.114]
[1763589389498,0.002,2996.8,2996.1,0.2144]
[1763589390883,0.486,2996.7,2995.8,0.90699264]
[1763589391089,0.486,2996.7,2995.9,0.114]
[1763589391515,0.486,2996.7,2996.0,0.114]
[1763589393478,0.002,2996.8,2996.1,0.1004]
[1763589393700,0.486,2996.7,2996.1,0.1004]
[1763589394212,0.002,2996.8,2996.1,0.1004]
[1763589394375,0.002,2996.8,2996.1,1.00739264]
[1763589395100,0.002,2996.8,2996.7,0.4602]
[1763589395309,0.002,2996.8,2996.7,0.5742]
[1763589395819,0.002,2996.8,2996.7,5.26929667]
[1763589396017,0.002,2996.8,2996.7,5.30266671]
[1763589396178,0.002,2996.8,2996.7,5.70817071]
[1763589396382,0.002,2996.8,2996.7,5.67480067]
[1763589397117,0.002,2997.1,2997.0,0.405504]
[1763589397277,0.002,2997.1,2997.0,5.56046664]
[1763589397881,0.002,2997.1,2997.0,5.66046664]
[1763589399108,0.002,2997.4,2997.1,0.90699264]
[1763589399311,0.002,2997.4,2997.3,0.865404]
[1763589399510,0.002,2997.4,2997.3,5.10873267]
[1763589399714,0.002,2997.4,2997.3,5.60283267]
[1763589400211,0.002,2997.4,2997.3,5.71683267]
[1763589404694,0.002,2997.4,2997.3,5.34469203]
[1763589404895,0.002,2997.4,2997.3,5.31132867]
[1763589405324,0.002,2997.4,2997.3,5.71683267]
[1763589406433,0.002,2997.4,2997.3,5.10873267]
[1763589406639,0.002,2997.4,2997.3,4.81722867]
[1763589407048,0.002,2997.4,2997.3,3.91023603]
[1763589407351,0.002,2997.4,2997.3,0.5739]
[1763589407514,0.002,2997.4,2997.3,1.48089264]
[1763589407714,0.002,2997.4,2997.3,5.31132867]
[1763589408019,0.002,2997.4,2997.3,5.22273267]
[1763589408330,0.002,2997.4,2997.3,5.71683267]
[1763589409105,0.002,2997.4,2997.3,5.22273267]
[1763589409823,0.002,2997.4,2997.3,0.90699264]
[1763589410125,0.9368,2997.4,2997.3,1.02099264]
[1763589410712,0.4543,2997.4,2997.3,1.02099264]
[1763589411915,0.9368,2997.4,2996.6,0.001]
[1763589412143,0.6362,2996.7,2996.6,0.001]
[1763589412442,0.6362,2996.7,2996.6,0.115]
[1763589412606,0.1851,2997.0,2996.6,0.115]
[1763589413109,0.6676,2997.0,2996.6,0.115]
[1763589413318,0.4523,2996.7,2996.6,0.001]
[1763589413520,0.4523,2996.7,2996.6,0.115]
[1763589413938,0.1851,2997.0,2996.6,0.115]
[1763589414102,0.6676,2997.0,2996.6,3.4521002]
[1763589414308,0.1851,2997.0,2996.6,6.78921559]
[1763589414541,0.4825,2997.3,2996.6,3.4521002]
[1763589414741,0.4825,2997.3,2996.6,6.78921559]
[1763589415047,0.002,2997.4,2996.7,0.90699264]
[1763589415773,0.002,2997.4,2996.6,6.78921559]
[1763589415774,0.002,2997.4,2996.9,0.90699264]
[1763589415906,0.002,2997.4,2997.0,0.114]
[1763589417710,0.002,2997.4,2997.1,6.67311734]
[1763589417908,0.002,2997.4,2997.3,0.4599]
[1763589418136,0.002,2997.4,2996.9,0.90699264]
[1763589418137,0.4523,2997.2,2996.6,3.33810848]
[1763589418413,0.6363,2996.7,2996.6,0.001]
[1763589418623,0.6363,2996.7,2996.6,0.115]
[1763589418819,1.1188,2996.7,2996.6,0.115]
[1763589419710,0.002,2997.4,2996.6,0.115]
[1763589419711,0.1851,2997.0,2996.6,0.115]
[1763589419930,0.4523,2996.7,2996.6,0.115]
[1763589420449,0.1851,2997.0,2996.6,0.115]
[1763589420649,0.002,2997.4,2996.7,0.90699264]
[1763589420650,0.4825,2997.3,2996.7,0.90699264]
[1763589420847,0.4523,2996.7,2996.6,0.001]
[1763589421053,0.4523,2996.7,2996.6,0.115]
[1763589421351,0.9348,2996.7,2996.6,0.115]
[1763589422319,0.9348,2996.7,2996.6,0.001]
[1763589422519,0.9348,2996.7,2996.6,0.115]
[1763589423459,0.4845,2997.4,2996.6,3.91191348]
[1763589423667,0.4523,2996.7,2996.6,0.001]
[1763589423862,0.4523,2996.7,2996.6,0.115]
[1763589424149,0.9348,2996.7,2996.6,0.115]
[1763589424352,0.9348,2996.7,2996.6,0.001]
[1763589424532,0.9348,2996.7,2996.6,0.115]
[1763589424731,0.9348,2996.7,2996.5,0.001]
[1763589424918,0.4491,2996.2,2995.1,0.001]
[1763589425120,0.888004,2996.6,2995.2,0.114]
[1763589425121,0.5252,2995.5,2995.2,0.114]
[1763589425553,1.0077,2995.5,2995.1,0.001]
[1763589425920,0.4429,2995.2,2995.1,0.001]
[1763589426347,0.9254,2995.2,2995.1,0.001]
[1763589428155,0.1851,2995.5,2995.1,0.001]
[1763589428369,0.4596,2995.4,2995.1,0.001]
[1763589428927,0.1851,2995.5,2995.1,0.001]
[1763589429324,0.6447,2995.5,2995.1,0.001]
[1763589429925,0.4912,2995.2,2995.1,0.001]
[1763589430121,0.4912,2995.2,2995.1,0.115]
[1763589430458,0.9508,2995.2,2995.1,0.001]
[1763589430959,0.1851,2995.5,2995.1,0.001]
[1763589431177,0.4912,2995.2,2995.1,0.001]
[1763589431523,0.4912,2995.2,2995.1,0.115]
[1763589432260,0.1851,2995.5,2995.1,0.115]
[1763589432459,0.1957,2995.9,2995.2,0.6487]
[1763589432662,0.1851,2996.9,2995.2,1.55569264]
[1763589432861,0.4596,2996.8,2995.3,0.4603]
[1763589433659,0.4596,2996.8,2995.4,0.405504]
[1763589434080,0.4596,2996.8,2995.6,0.405504]
[1763589434386,0.4596,2996.8,2995.7,0.114]
[1763589434553,0.4596,2996.8,2995.9,0.90699264]
[1763589434949,0.4596,2996.8,2995.7,0.114]
[1763589435546,0.4596,2996.8,2995.8,0.90699264]
[1763589435985,0.4596,2996.8,2995.9,0.114]
[1763589437186,0.4596,2996.8,2995.9,6.78971762]
[1763589437755,0.4596,2996.8,2995.9,3.4518225]
[1763589438156,0.1851,2996.9,2995.9,7.25001762]
[1763589438355,0.1851,2996.9,2995.9,3.9121225]
[1763589438557,0.6447,2996.9,2995.9,3.9121225]
[1763589439284,0.4596,2996.8,2995.9,3.4518225]
[1763589439487,0.4596,2996.8,2995.7,3.33803545]
[1763589439488,0.4596,2996.8,2996.0,0.114]
[1763589439863,0.4596,2996.8,2996.1,0.1013]
[1763589440302,0.4616,2996.8,2996.1,0.1013]
[1763589441499,0.4616,2996.8,2996.0,0.114]
[1763589442301,0.4616,2996.8,2996.1,0.114]
[1763589442602,0.4616,2996.8,2996.2,0.114]
[1763589442785,0.4616,2996.8,2995.5,0.4603]
[1763589442786,0.4616,2996.8,2996.3,0.114]
[1763589443300,0.4912,2996.4,2995.1,0.001]
[1763589443496,0.4616,2996.8,2995.2,0.114]
[1763589443686,0.4596,2996.7,2995.2,1.48129264]
[1763589445294,0.4596,2996.7,2995.4,0.90699264]
[1763589447217,0.4596,2996.7,2995.6,0.90699264]
[1763589447542,0.4596,2996.7,2995.4,0.90699264]
[1763589447543,0.4596,2996.7,2995.7,0.114]
[1763589448799,0.6468,2995.8,2995.1,0.1894]
[1763589449031,0.6468,2995.8,2995.2,0.114]
[1763589449210,0.481,2995.7,2995.1,0.001]
[1763589449435,0.481,2995.7,2995.2,0.114]
[1763589449741,0.4561,2995.3,2995.2,0.114]
[1763589450108,0.481,2995.7,2995.2,0.114]
[1763589450646,0.1907,2995.8,2995.2,0.114]
[1763589450796,0.481,2995.7,2995.2,0.114]
[1763589453630,0.1907,2995.8,2995.2,0.114]
[1763589456007,0.6717,2995.8,2995.2,0.114]
[1763589456415,0.4561,2995.3,2995.2,0.114]
[1763589456613,0.481,2995.7,2995.2,0.114]